[Event "Titled Tuesday Blitz April 19 Late 2022"]
[White "Balint, Vilmos"]
[Black "Hnydiuk, Aleksander"]
[WhiteFideId "718050"]
[BlackFideId "1109057"]
[WhiteElo "2059"]
[BlackElo "2374"]
[Result "0-1"]
[Round "06"]
[TimeControl "180+1"]
[Date "2022.04.19"]
[WhiteClock "0:01:56"]
[BlackClock "0:00:51"]

1. f4 {[%clk 0:03:00]}  d5 {[%clk 0:02:54]} 2. Nf3 {[%clk 0:03:01]}  Bg4 {[%clk 0:02:55]} 3. g3 {[%clk 0:02:59]}  Bxf3 {[%clk 0:02:55]} 4. exf3 {[%clk 0:03:00]}  h5 {[%clk 0:02:55]} 5. h4 {[%clk 0:02:59]}  e6 {[%clk 0:02:53]} 6. d4 {[%clk 0:03:00]}  c5 {[%clk 0:02:50]} 7. Be3 {[%clk 0:02:59]}  Nc6 {[%clk 0:02:49]} 8. c3 {[%clk 0:02:57]}  cxd4 {[%clk 0:02:47]} 9. Bxd4 {[%clk 0:02:57]}  Nh6 {[%clk 0:02:43]} 10. Bf2 {[%clk 0:02:57]}  Nf5 {[%clk 0:02:39]} 11. Bd3 {[%clk 0:02:57]}  g6 {[%clk 0:02:39]} 12. Qb3 {[%clk 0:02:55]}  Qc7 {[%clk 0:02:36]} 13. Na3 {[%clk 0:02:54]}  a6 {[%clk 0:02:26]} 14. Nc2 {[%clk 0:02:54]}  b5 {[%clk 0:02:23]} 15. a4 {[%clk 0:02:53]}  Na5 {[%clk 0:02:00]} 16. Qa2 {[%clk 0:02:50]}  Bc5 {[%clk 0:01:49]} 17. axb5 {[%clk 0:02:34]}  axb5 {[%clk 0:01:50]} 18. Bxb5+ {[%clk 0:02:32]}  Ke7 {[%clk 0:01:50]} 19. Bxc5+ {[%clk 0:02:30]}  Qxc5 {[%clk 0:01:51]} 20. Qa3 {[%clk 0:02:27]}  Qxa3 {[%clk 0:01:48]} 21. Rxa3 {[%clk 0:02:26]}  Nxg3 {[%clk 0:01:46]} 22. Rg1 {[%clk 0:02:25]}  Nf5 {[%clk 0:01:46]} 23. Nb4 {[%clk 0:02:23]}  Nxh4 {[%clk 0:01:37]} 24. Rxa5 {[%clk 0:02:23]}  Rxa5 {[%clk 0:01:37]} 25. Nc6+ {[%clk 0:02:23]}  Kd6 {[%clk 0:01:38]} 26. Nxa5 {[%clk 0:02:24]}  Nxf3+ {[%clk 0:01:37]} 27. Kf2 {[%clk 0:02:24]}  Nxg1 {[%clk 0:01:38]} 28. Kxg1 {[%clk 0:02:25]}  Ra8 {[%clk 0:01:34]} 29. b4 {[%clk 0:02:23]}  Rc8 {[%clk 0:01:28]} 30. c4 {[%clk 0:02:23]}  dxc4 {[%clk 0:01:27]} 31. Nxc4+ {[%clk 0:02:24]}  Ke7 {[%clk 0:01:24]} 32. Kf2 {[%clk 0:02:23]}  Rb8 {[%clk 0:01:22]} 33. Na3 {[%clk 0:02:23]}  f6 {[%clk 0:01:17]} 34. Kf3 {[%clk 0:02:23]}  f5 {[%clk 0:01:15]} 35. Kg3 {[%clk 0:02:22]}  Kf6 {[%clk 0:01:15]} 36. Kf3 {[%clk 0:02:21]}  e5 {[%clk 0:01:11]} 37. fxe5+ {[%clk 0:02:16]}  Kxe5 {[%clk 0:01:11]} 38. Nc4+ {[%clk 0:02:14]}  Kd4 {[%clk 0:01:02]} 39. Nd6 {[%clk 0:02:09]}  Kd5 {[%clk 0:01:01]} 40. Be8 {[%clk 0:01:57]}  Kxd6 {[%clk 0:00:57]} 41. Bxg6 {[%clk 0:01:56]}  Ke5 {[%clk 0:00:56]} 42. Bxh5 {[%clk 0:01:54]}  Rxb4 {[%clk 0:00:56]} 43. Kg3 {[%clk 0:01:55]}  Rb3+ {[%clk 0:00:55]} 44. Kf2 {[%clk 0:01:55]}  Kf4 {[%clk 0:00:53]} 45. Bf7 {[%clk 0:01:55]}  Rb2+ {[%clk 0:00:53]} 46. Ke1 {[%clk 0:01:56]}  Ke3 {[%clk 0:00:53]} 47. Kf1 {[%clk 0:01:56]}  f4 {[%clk 0:00:52]} 48. Be6 {[%clk 0:01:56]}  f3 {[%clk 0:00:52]} 49. Bf5 {[%clk 0:01:55]}  Ra2 {[%clk 0:00:51]} 50. Kg1 {[%clk 0:01:55]}  Ra1+ {[%clk 0:00:51]} 51. Kh2 {[%clk 0:01:56]}  f2 {[%clk 0:00:51]} 0-1


[Site "https://www.chess.com"]

[Event "Titled Tuesday Blitz April 19 Late 2022"]
[White "Barrientos, Sergio E"]
[Black "Ibarra Jerez, Jose Carlos"]
[WhiteFideId "4401824"]
[BlackFideId "2226332"]
[WhiteElo "2397"]
[BlackElo "2626"]
[Result "0-1"]
[Round "06"]
[TimeControl "180+1"]
[Date "2022.04.19"]
[WhiteClock "0:00:02"]
[BlackClock "0:00:06"]

1. d4 {[%clk 0:03:00]}  d6 {[%clk 0:02:59]} 2. e4 {[%clk 0:02:59]}  e5 {[%clk 0:02:59]} 3. Nf3 {[%clk 0:02:53]}  exd4 {[%clk 0:02:59]} 4. Nxd4 {[%clk 0:02:53]}  Nf6 {[%clk 0:03:00]} 5. Nc3 {[%clk 0:02:53]}  Be7 {[%clk 0:03:01]} 6. g3 {[%clk 0:02:53]}  d5 {[%clk 0:03:00]} 7. e5 {[%clk 0:02:51]}  Ng4 {[%clk 0:03:00]} 8. f4 {[%clk 0:02:44]}  c5 {[%clk 0:02:56]} 9. Nf3 {[%clk 0:02:41]}  d4 {[%clk 0:02:52]} 10. Ne4 {[%clk 0:02:38]}  Qd5 {[%clk 0:02:49]} 11. Nc3 {[%clk 0:02:28]}  Qd7 {[%clk 0:02:31]} 12. Ne4 {[%clk 0:02:28]}  Qc6 {[%clk 0:02:25]} 13. Nf2 {[%clk 0:02:08]}  Ne3 {[%clk 0:02:20]} 14. Bxe3 {[%clk 0:01:50]}  dxe3 {[%clk 0:02:21]} 15. Nh3 {[%clk 0:01:46]}  O-O {[%clk 0:02:12]} 16. Qe2 {[%clk 0:01:44]}  Qb6 {[%clk 0:01:38]} 17. Rb1 {[%clk 0:01:31]}  Be6 {[%clk 0:01:37]} 18. a3 {[%clk 0:01:30]}  Ba2 {[%clk 0:01:36]} 19. Rd1 {[%clk 0:01:23]}  Qxb2 {[%clk 0:01:36]} 20. Qxe3 {[%clk 0:01:22]}  c4 {[%clk 0:01:06]} 21. Bg2 {[%clk 0:01:14]}  Nc6 {[%clk 0:01:01]} 22. O-O {[%clk 0:01:11]}  c3 {[%clk 0:00:54]} 23. Nfg5 {[%clk 0:01:06]}  h6 {[%clk 0:00:47]} 24. Ne4 {[%clk 0:01:05]}  Qxa3 {[%clk 0:00:47]} 25. Ra1 {[%clk 0:01:00]}  Rac8 {[%clk 0:00:40]} 26. Kh1 {[%clk 0:00:55]}  Nb4 {[%clk 0:00:39]} 27. Qf2 {[%clk 0:00:50]}  Qb2 {[%clk 0:00:36]} 28. Rac1 {[%clk 0:00:45]}  Bc4 {[%clk 0:00:30]} 29. Rfe1 {[%clk 0:00:42]}  Rfd8 {[%clk 0:00:23]} 30. f5 {[%clk 0:00:40]}  Bf8 {[%clk 0:00:24]} 31. e6 {[%clk 0:00:34]}  f6 {[%clk 0:00:20]} 32. Nf4 {[%clk 0:00:32]}  Nc6 {[%clk 0:00:19]} 33. Ng6 {[%clk 0:00:32]}  Ne7 {[%clk 0:00:19]} 34. Nxe7+ {[%clk 0:00:31]}  Bxe7 {[%clk 0:00:19]} 35. Rb1 {[%clk 0:00:32]}  Qa2 {[%clk 0:00:19]} 36. Rxb7 {[%clk 0:00:32]}  Qa3 {[%clk 0:00:14]} 37. Rxa7 {[%clk 0:00:31]}  Qb4 {[%clk 0:00:15]} 38. Rb7 {[%clk 0:00:28]}  Qa3 {[%clk 0:00:14]} 39. Qf4 {[%clk 0:00:26]}  Re8 {[%clk 0:00:13]} 40. Qg4 {[%clk 0:00:26]}  Bd5 {[%clk 0:00:13]} 41. Nxf6+ {[%clk 0:00:20]}  Bxf6 {[%clk 0:00:13]} 42. Bxd5 {[%clk 0:00:20]}  Qd6 {[%clk 0:00:12]} 43. Rxg7+ {[%clk 0:00:19]}  Bxg7 {[%clk 0:00:11]} 44. f6 {[%clk 0:00:19]}  Qxd5+ {[%clk 0:00:11]} 45. Re4 {[%clk 0:00:18]}  Qg5 {[%clk 0:00:11]} 46. f7+ {[%clk 0:00:08]}  Kh7 {[%clk 0:00:12]} 47. Qf3 {[%clk 0:00:07]}  Qc1+ {[%clk 0:00:11]} 48. Kg2 {[%clk 0:00:07]}  Re7 {[%clk 0:00:10]} 49. Rg4 {[%clk 0:00:04]}  Qxc2+ {[%clk 0:00:09]} 50. Kh3 {[%clk 0:00:05]}  Rf8 {[%clk 0:00:09]} 51. Qd5 {[%clk 0:00:01]}  Qd2 {[%clk 0:00:08]} 52. Qc5 {[%clk 0:00:01]}  Qd8 {[%clk 0:00:07]} 53. Qf5+ {[%clk 0:00:01]}  Kh8 {[%clk 0:00:07]} 54. Qg6 {[%clk 0:00:02]}  Rfxf7 {[%clk 0:00:07]} 55. exf7 {[%clk 0:00:02]}  Qf8 {[%clk 0:00:08]} 56. Rf4 {[%clk 0:00:02]}  c2 {[%clk 0:00:08]} 57. Qxc2 {[%clk 0:00:02]}  Rxf7 {[%clk 0:00:09]} 58. Rg4 {[%clk 0:00:02]}  Rf5 {[%clk 0:00:08]} 59. Qc7 {[%clk 0:00:02]}  Rh5+ {[%clk 0:00:08]} 60. Rh4 {[%clk 0:00:02]}  Rxh4+ {[%clk 0:00:09]} 61. Kxh4 {[%clk 0:00:03]}  Qf5 {[%clk 0:00:09]} 62. Qd8+ {[%clk 0:00:02]}  Kh7 {[%clk 0:00:09]} 63. Qe7 {[%clk 0:00:01]}  h5 {[%clk 0:00:07]} 64. Qe8 {[%clk 0:00:02]}  Qg4# {[%clk 0:00:06]} 0-1


[Site "https://www.chess.com"]

[Event "Titled Tuesday Blitz April 19 Late 2022"]
[White "Bluebaum, Matthias"]
[Black "Korchmar, Vasiliy"]
[WhiteFideId "24651516"]
[BlackFideId "24131750"]
[WhiteElo "2550"]
[BlackElo "2370"]
[Result "1-0"]
[Round "06"]
[TimeControl "180+1"]
[Date "2022.04.19"]
[WhiteClock "0:00:55"]
[BlackClock "0:00:01"]

1. d4 {[%clk 0:03:00]}  d5 {[%clk 0:02:59]} 2. c4 {[%clk 0:03:01]}  c6 {[%clk 0:02:59]} 3. Nf3 {[%clk 0:02:59]}  Nf6 {[%clk 0:02:59]} 4. Nc3 {[%clk 0:03:00]}  a6 {[%clk 0:02:59]} 5. Qc2 {[%clk 0:03:00]}  dxc4 {[%clk 0:02:42]} 6. e4 {[%clk 0:02:59]}  Bg4 {[%clk 0:02:42]} 7. Bxc4 {[%clk 0:02:49]}  Bxf3 {[%clk 0:02:41]} 8. gxf3 {[%clk 0:02:50]}  b5 {[%clk 0:02:15]} 9. Bb3 {[%clk 0:02:50]}  g6 {[%clk 0:02:10]} 10. Be3 {[%clk 0:02:24]}  Bg7 {[%clk 0:02:09]} 11. h4 {[%clk 0:02:17]}  h5 {[%clk 0:02:06]} 12. e5 {[%clk 0:02:08]}  Nd5 {[%clk 0:02:02]} 13. e6 {[%clk 0:02:07]}  O-O {[%clk 0:01:13]} 14. exf7+ {[%clk 0:02:05]}  Rxf7 {[%clk 0:00:45]} 15. Qxg6 {[%clk 0:02:04]}  e5 {[%clk 0:00:29]} 16. dxe5 {[%clk 0:01:57]}  Nd7 {[%clk 0:00:11]} 17. Qxc6 {[%clk 0:01:19]}  Nxe3 {[%clk 0:00:02]} 18. Bxf7+ {[%clk 0:01:18]}  Kxf7 {[%clk 0:00:03]} 19. e6+ {[%clk 0:01:14]}  Kg8 {[%clk 0:00:03]} 20. fxe3 {[%clk 0:00:55]}  Ne5 {[%clk 0:00:03]} 21. Qd5 {[%clk 0:00:56]}  Qe7 {[%clk 0:00:01]} 22. Qxa8+ {[%clk 0:00:55]} 1-0


[Site "https://www.chess.com"]

[Event "Titled Tuesday Blitz April 19 Late 2022"]
[White "Bryakin, Mikhail"]
[Black "Perrine, Dalton"]
[WhiteFideId "4165314"]
[BlackFideId "2048434"]
[WhiteElo "2417"]
[BlackElo "2491"]
[Result "1-0"]
[Round "06"]
[TimeControl "180+1"]
[Date "2022.04.19"]
[WhiteClock "0:01:29"]
[BlackClock "0:00:02"]

1. e4 {[%clk 0:03:00]}  c5 {[%clk 0:02:57]} 2. Nf3 {[%clk 0:02:58]}  e6 {[%clk 0:02:57]} 3. c3 {[%clk 0:02:56]}  Nf6 {[%clk 0:02:48]} 4. e5 {[%clk 0:02:50]}  Nd5 {[%clk 0:02:48]} 5. Be2 {[%clk 0:02:44]}  d6 {[%clk 0:02:47]} 6. exd6 {[%clk 0:02:42]}  Nc6 {[%clk 0:02:47]} 7. O-O {[%clk 0:02:42]}  Bxd6 {[%clk 0:02:46]} 8. Na3 {[%clk 0:02:43]}  O-O {[%clk 0:02:45]} 9. d4 {[%clk 0:02:41]}  cxd4 {[%clk 0:02:44]} 10. Nxd4 {[%clk 0:02:41]}  Bxa3 {[%clk 0:02:33]} 11. Nxc6 {[%clk 0:02:41]}  bxc6 {[%clk 0:02:31]} 12. bxa3 {[%clk 0:02:41]}  Nxc3 {[%clk 0:02:31]} 13. Qc2 {[%clk 0:02:41]}  Nxe2+ {[%clk 0:02:18]} 14. Qxe2 {[%clk 0:02:42]}  Qa5 {[%clk 0:02:14]} 15. Bb2 {[%clk 0:02:38]}  Ba6 {[%clk 0:02:11]} 16. Qg4 {[%clk 0:02:38]}  f6 {[%clk 0:01:32]} 17. Qxe6+ {[%clk 0:02:37]}  Kh8 {[%clk 0:01:33]} 18. Rfe1 {[%clk 0:02:32]}  Qd5 {[%clk 0:01:11]} 19. Qe7 {[%clk 0:02:30]}  Bd3 {[%clk 0:00:58]} 20. Rac1 {[%clk 0:02:26]}  Qxa2 {[%clk 0:00:53]} 21. Bd4 {[%clk 0:02:20]}  Bg6 {[%clk 0:00:39]} 22. Qc5 {[%clk 0:02:10]}  Rfd8 {[%clk 0:00:19]} 23. Be3 {[%clk 0:02:09]}  Qd5 {[%clk 0:00:17]} 24. Qe7 {[%clk 0:02:09]}  Qd7 {[%clk 0:00:16]} 25. Qb4 {[%clk 0:02:08]}  a5 {[%clk 0:00:15]} 26. Qc5 {[%clk 0:02:08]}  Bf7 {[%clk 0:00:14]} 27. h4 {[%clk 0:02:07]}  Bd5 {[%clk 0:00:14]} 28. f3 {[%clk 0:02:05]}  Qf5 {[%clk 0:00:11]} 29. Bf2 {[%clk 0:02:03]}  a4 {[%clk 0:00:10]} 30. Rcd1 {[%clk 0:02:02]}  Re8 {[%clk 0:00:10]} 31. Rxe8+ {[%clk 0:01:58]}  Rxe8 {[%clk 0:00:11]} 32. Qd4 {[%clk 0:01:58]}  h6 {[%clk 0:00:09]} 33. Qxa4 {[%clk 0:01:57]}  Re2 {[%clk 0:00:08]} 34. Qd4 {[%clk 0:01:57]}  Qc2 {[%clk 0:00:08]} 35. Re1 {[%clk 0:01:54]}  Rxe1+ {[%clk 0:00:06]} 36. Bxe1 {[%clk 0:01:55]}  Qc1 {[%clk 0:00:07]} 37. Qb4 {[%clk 0:01:53]}  c5 {[%clk 0:00:06]} 38. Qa5 {[%clk 0:01:52]}  Bg8 {[%clk 0:00:03]} 39. h5 {[%clk 0:01:52]}  c4 {[%clk 0:00:03]} 40. Qb4 {[%clk 0:01:51]}  Qe3+ {[%clk 0:00:03]} 41. Bf2 {[%clk 0:01:50]}  Qd3 {[%clk 0:00:04]} 42. Be1 {[%clk 0:01:48]}  Qe3+ {[%clk 0:00:04]} 43. Kh1 {[%clk 0:01:49]}  Bf7 {[%clk 0:00:03]} 44. Qf8+ {[%clk 0:01:47]}  Bg8 {[%clk 0:00:04]} 45. Qb4 {[%clk 0:01:47]}  Qe5 {[%clk 0:00:04]} 46. Bc3 {[%clk 0:01:40]}  Qxh5+ {[%clk 0:00:04]} 47. Kg1 {[%clk 0:01:41]}  Qg6 {[%clk 0:00:04]} 48. Qb2 {[%clk 0:01:38]}  Bd5 {[%clk 0:00:04]} 49. Kf2 {[%clk 0:01:36]}  Qd3 {[%clk 0:00:04]} 50. a4 {[%clk 0:01:36]}  Kh7 {[%clk 0:00:02]} 51. a5 {[%clk 0:01:37]}  Qf5 {[%clk 0:00:02]} 52. a6 {[%clk 0:01:37]}  Qc8 {[%clk 0:00:03]} 53. a7 {[%clk 0:01:37]}  Qa8 {[%clk 0:00:03]} 54. Bd4 {[%clk 0:01:36]}  Bb7 {[%clk 0:00:03]} 55. Qb1+ {[%clk 0:01:36]}  Kg8 {[%clk 0:00:02]} 56. Qg6 {[%clk 0:01:37]}  Bd5 {[%clk 0:00:03]} 57. Qf5 {[%clk 0:01:35]}  Bf7 {[%clk 0:00:02]} 58. Qf4 {[%clk 0:01:33]}  Bd5 {[%clk 0:00:02]} 59. Qf5 {[%clk 0:01:34]}  Kh8 {[%clk 0:00:02]} 60. Qd7 {[%clk 0:01:32]}  Qc6 {[%clk 0:00:01]} 61. Qd8+ {[%clk 0:01:28]}  Kh7 {[%clk 0:00:02]} 62. Qa5 {[%clk 0:01:29]}  Qa8 {[%clk 0:00:02]} 63. Qa1 {[%clk 0:01:29]}  Bg8 {[%clk 0:00:02]} 64. Qb1+ {[%clk 0:01:28]}  Kh8 {[%clk 0:00:03]} 65. Qb8 {[%clk 0:01:28]}  Qd5 {[%clk 0:00:01]} 66. a8=Q {[%clk 0:01:29]}  Qxd4+ {[%clk 0:00:02]} 67. Kg3 {[%clk 0:01:29]}  Qe5+ {[%clk 0:00:01]} 68. Qxe5 {[%clk 0:01:29]}  fxe5 {[%clk 0:00:02]} 1-0


[Site "https://www.chess.com"]

[Event "Titled Tuesday Blitz April 19 Late 2022"]
[White "Caruana, Fabiano"]
[Black "Rasulov, Vugar"]
[WhiteFideId "2020009"]
[BlackFideId "13402390"]
[WhiteElo "2744"]
[BlackElo "2560"]
[Result "1-0"]
[Round "06"]
[TimeControl "180+1"]
[Date "2022.04.19"]
[WhiteClock "0:00:17"]
[BlackClock "0:00:09"]

1. e4 {[%clk 0:03:00]}  c5 {[%clk 0:03:00]} 2. Nf3 {[%clk 0:03:01]}  d6 {[%clk 0:03:00]} 3. Bb5+ {[%clk 0:03:00]}  Nd7 {[%clk 0:02:59]} 4. O-O {[%clk 0:02:59]}  a6 {[%clk 0:02:59]} 5. Bd3 {[%clk 0:02:55]}  Ngf6 {[%clk 0:02:59]} 6. c4 {[%clk 0:02:56]}  Ne5 {[%clk 0:02:58]} 7. Nxe5 {[%clk 0:02:54]}  dxe5 {[%clk 0:02:59]} 8. Bc2 {[%clk 0:02:55]}  g6 {[%clk 0:02:57]} 9. d3 {[%clk 0:02:55]}  Bg7 {[%clk 0:02:58]} 10. Be3 {[%clk 0:02:55]}  b6 {[%clk 0:02:57]} 11. h3 {[%clk 0:02:55]}  O-O {[%clk 0:02:57]} 12. Nc3 {[%clk 0:02:55]}  Ne8 {[%clk 0:02:54]} 13. Rb1 {[%clk 0:02:55]}  Nc7 {[%clk 0:02:34]} 14. b4 {[%clk 0:02:38]}  Ne6 {[%clk 0:02:33]} 15. Nd5 {[%clk 0:02:36]}  Nd4 {[%clk 0:02:29]} 16. bxc5 {[%clk 0:02:31]}  bxc5 {[%clk 0:02:30]} 17. Bxd4 {[%clk 0:02:17]}  exd4 {[%clk 0:02:27]} 18. Ba4 {[%clk 0:02:11]}  Be6 {[%clk 0:02:19]} 19. f4 {[%clk 0:02:07]}  Kh8 {[%clk 0:02:09]} 20. Qf3 {[%clk 0:02:05]}  Qa5 {[%clk 0:02:05]} 21. Bb3 {[%clk 0:02:03]}  Ra7 {[%clk 0:02:02]} 22. f5 {[%clk 0:01:53]}  Bxd5 {[%clk 0:02:01]} 23. exd5 {[%clk 0:01:53]}  Qd2 {[%clk 0:01:53]} 24. Rbe1 {[%clk 0:01:50]}  a5 {[%clk 0:01:44]} 25. Re2 {[%clk 0:01:46]}  Qg5 {[%clk 0:01:44]} 26. Ba4 {[%clk 0:01:44]}  Bf6 {[%clk 0:01:36]} 27. Bc6 {[%clk 0:01:37]}  Kg7 {[%clk 0:01:33]} 28. Re4 {[%clk 0:01:34]}  a4 {[%clk 0:01:28]} 29. h4 {[%clk 0:01:32]}  Qd2 {[%clk 0:01:26]} 30. Rf2 {[%clk 0:01:22]}  Qc1+ {[%clk 0:01:25]} 31. Kh2 {[%clk 0:01:22]}  Rb8 {[%clk 0:01:13]} 32. d6 {[%clk 0:01:11]}  Qh6 {[%clk 0:00:55]} 33. fxg6 {[%clk 0:01:05]}  hxg6 {[%clk 0:00:14]} 34. dxe7 {[%clk 0:01:03]}  Bxe7 {[%clk 0:00:13]} 35. Qxf7+ {[%clk 0:00:39]}  Kh8 {[%clk 0:00:13]} 36. Qe6 {[%clk 0:00:19]}  a3 {[%clk 0:00:13]} 37. Qe5+ {[%clk 0:00:18]}  Qg7 {[%clk 0:00:09]} 38. Qxb8+ {[%clk 0:00:18]}  Kh7 {[%clk 0:00:09]} 39. g3 {[%clk 0:00:17]} 1-0


[Site "https://www.chess.com"]

[Event "Titled Tuesday Blitz April 19 Late 2022"]
[White "Chigaev, Maksim"]
[Black "Nakamura, Hikaru"]
[WhiteFideId "4108116"]
[BlackFideId "2016192"]
[WhiteElo "2478"]
[BlackElo "2850"]
[Result "0-1"]
[Round "06"]
[TimeControl "180+1"]
[Date "2022.04.19"]
[WhiteClock "0:00:03"]
[BlackClock "0:01:14"]

1. e4 {[%clk 0:03:00]}  e5 {[%clk 0:02:57]} 2. Nf3 {[%clk 0:03:01]}  Nc6 {[%clk 0:02:56]} 3. Bc4 {[%clk 0:03:02]}  Bc5 {[%clk 0:02:56]} 4. d3 {[%clk 0:03:01]}  Nf6 {[%clk 0:02:55]} 5. a4 {[%clk 0:03:01]}  a6 {[%clk 0:02:54]} 6. c3 {[%clk 0:03:01]}  d6 {[%clk 0:02:55]} 7. O-O {[%clk 0:02:57]}  Ba7 {[%clk 0:02:54]} 8. Re1 {[%clk 0:02:56]}  O-O {[%clk 0:02:53]} 9. Nbd2 {[%clk 0:02:55]}  h6 {[%clk 0:02:52]} 10. h3 {[%clk 0:02:54]}  Re8 {[%clk 0:02:51]} 11. Qb3 {[%clk 0:02:54]}  Qd7 {[%clk 0:02:49]} 12. a5 {[%clk 0:02:52]}  b5 {[%clk 0:02:50]} 13. axb6 {[%clk 0:02:52]}  cxb6 {[%clk 0:02:50]} 14. Qd1 {[%clk 0:02:36]}  b5 {[%clk 0:02:48]} 15. Ba2 {[%clk 0:02:36]}  Bb7 {[%clk 0:02:46]} 16. Nf1 {[%clk 0:02:35]}  d5 {[%clk 0:02:46]} 17. exd5 {[%clk 0:02:34]}  Nxd5 {[%clk 0:02:46]} 18. Ng3 {[%clk 0:02:35]}  Rad8 {[%clk 0:02:44]} 19. Nh4 {[%clk 0:01:48]}  Nf6 {[%clk 0:02:26]} 20. Bxh6 {[%clk 0:01:28]}  Qxd3 {[%clk 0:02:17]} 21. Qxd3 {[%clk 0:01:20]}  Rxd3 {[%clk 0:02:17]} 22. Be3 {[%clk 0:01:20]}  Bxe3 {[%clk 0:02:16]} 23. Rxe3 {[%clk 0:01:20]}  Rxe3 {[%clk 0:02:15]} 24. fxe3 {[%clk 0:01:21]}  e4 {[%clk 0:02:05]} 25. Rd1 {[%clk 0:01:15]}  Ne5 {[%clk 0:02:05]} 26. Nhf5 {[%clk 0:01:09]}  Bc6 {[%clk 0:01:55]} 27. Rd6 {[%clk 0:01:02]}  Kf8 {[%clk 0:01:46]} 28. b4 {[%clk 0:00:33]}  Rc8 {[%clk 0:01:43]} 29. Nxg7 {[%clk 0:00:33]}  Kxg7 {[%clk 0:01:23]} 30. Nf5+ {[%clk 0:00:34]}  Kf8 {[%clk 0:01:23]} 31. Rxf6 {[%clk 0:00:34]}  Bd7 {[%clk 0:01:24]} 32. Nd4 {[%clk 0:00:16]}  Rxc3 {[%clk 0:01:23]} 33. Rxa6 {[%clk 0:00:14]}  Rxe3 {[%clk 0:01:23]} 34. Rf6 {[%clk 0:00:05]}  Rd3 {[%clk 0:01:17]} 35. Nf5 {[%clk 0:00:02]}  Rd1+ {[%clk 0:01:13]} 36. Kh2 {[%clk 0:00:02]}  Rf1 {[%clk 0:01:13]} 37. g4 {[%clk 0:00:03]}  Rf2+ {[%clk 0:01:13]} 38. Kg3 {[%clk 0:00:03]}  Rxa2 {[%clk 0:01:14]} 39. Kf4 {[%clk 0:00:03]} 0-1


[Site "https://www.chess.com"]

[Event "Titled Tuesday Blitz April 19 Late 2022"]
[White "Derraugh, Geordie"]
[Black "Yoo, Christopher Woojin"]
[WhiteFideId "2603950"]
[BlackFideId "30909694"]
[WhiteElo "2116"]
[BlackElo "2105"]
[Result "1/2-1/2"]
[Round "06"]
[TimeControl "180+1"]
[Date "2022.04.19"]
[WhiteClock "0:00:03"]
[BlackClock "0:00:04"]

1. e4 {[%clk 0:03:00]}  c5 {[%clk 0:02:59]} 2. c3 {[%clk 0:02:59]}  e6 {[%clk 0:02:55]} 3. d4 {[%clk 0:02:58]}  d5 {[%clk 0:02:55]} 4. exd5 {[%clk 0:02:58]}  Qxd5 {[%clk 0:02:55]} 5. Nf3 {[%clk 0:02:58]}  Nf6 {[%clk 0:02:55]} 6. Na3 {[%clk 0:02:57]}  a6 {[%clk 0:02:54]} 7. Nc2 {[%clk 0:02:56]}  Nc6 {[%clk 0:02:51]} 8. Be3 {[%clk 0:02:56]}  Ng4 {[%clk 0:02:36]} 9. dxc5 {[%clk 0:02:54]}  Nxe3 {[%clk 0:02:34]} 10. Nxe3 {[%clk 0:02:52]}  Qxc5 {[%clk 0:02:29]} 11. Bd3 {[%clk 0:02:52]}  Be7 {[%clk 0:02:29]} 12. Qc2 {[%clk 0:02:51]}  f5 {[%clk 0:02:25]} 13. b4 {[%clk 0:02:48]}  Qd6 {[%clk 0:02:24]} 14. Rd1 {[%clk 0:02:46]}  Qc7 {[%clk 0:02:21]} 15. Qb3 {[%clk 0:02:41]}  Ne5 {[%clk 0:01:32]} 16. Nd4 {[%clk 0:02:19]}  Nxd3+ {[%clk 0:01:29]} 17. Rxd3 {[%clk 0:02:20]}  Qe5 {[%clk 0:01:25]} 18. Nf3 {[%clk 0:02:09]}  Qf6 {[%clk 0:01:17]} 19. Nc4 {[%clk 0:01:59]}  O-O {[%clk 0:01:15]} 20. Nce5 {[%clk 0:01:58]}  g5 {[%clk 0:01:07]} 21. h3 {[%clk 0:01:57]}  Rd8 {[%clk 0:01:02]} 22. Qd1 {[%clk 0:01:34]}  Rxd3 {[%clk 0:00:56]} 23. Qxd3 {[%clk 0:01:35]}  b5 {[%clk 0:00:56]} 24. O-O {[%clk 0:01:33]}  Bb7 {[%clk 0:00:56]} 25. Qd7 {[%clk 0:01:31]}  Bd5 {[%clk 0:00:53]} 26. Re1 {[%clk 0:01:21]}  h5 {[%clk 0:00:31]} 27. Nd4 {[%clk 0:01:15]}  Rd8 {[%clk 0:00:31]} 28. Qa7 {[%clk 0:01:12]}  g4 {[%clk 0:00:28]} 29. hxg4 {[%clk 0:00:43]}  fxg4 {[%clk 0:00:29]} 30. Qxa6 {[%clk 0:00:38]}  Rf8 {[%clk 0:00:28]} 31. Re2 {[%clk 0:00:30]}  g3 {[%clk 0:00:21]} 32. fxg3 {[%clk 0:00:15]}  h4 {[%clk 0:00:21]} 33. gxh4 {[%clk 0:00:12]}  Qf1+ {[%clk 0:00:21]} 34. Kh2 {[%clk 0:00:11]}  Rf4 {[%clk 0:00:21]} 35. Nef3 {[%clk 0:00:11]}  Bxh4 {[%clk 0:00:09]} 36. Qc8+ {[%clk 0:00:10]}  Rf8 {[%clk 0:00:09]} 37. Qd7 {[%clk 0:00:07]}  Bf6 {[%clk 0:00:03]} 38. Rxe6 {[%clk 0:00:06]}  Bxe6 {[%clk 0:00:02]} 39. Qxe6+ {[%clk 0:00:07]}  Rf7 {[%clk 0:00:02]} 40. Qg4+ {[%clk 0:00:07]}  Rg7 {[%clk 0:00:02]} 41. Qe6+ {[%clk 0:00:07]}  Rf7 {[%clk 0:00:02]} 42. Nf5 {[%clk 0:00:06]}  Qc1 {[%clk 0:00:01]} 43. N3d4 {[%clk 0:00:04]}  Qf4+ {[%clk 0:00:01]} 44. Kg1 {[%clk 0:00:04]}  Qc1+ {[%clk 0:00:01]} 45. Kh2 {[%clk 0:00:04]}  Qf4+ {[%clk 0:00:02]} 46. Kg1 {[%clk 0:00:05]}  Bxd4+ {[%clk 0:00:02]} 47. Nxd4 {[%clk 0:00:03]}  Qc1+ {[%clk 0:00:02]} 48. Kh2 {[%clk 0:00:03]}  Qf4+ {[%clk 0:00:01]} 49. Kg1 {[%clk 0:00:03]}  Qc1+ {[%clk 0:00:02]} 50. Kh2 {[%clk 0:00:04]}  Qxc3 {[%clk 0:00:03]} 51. Nf5 {[%clk 0:00:03]}  Qd2 {[%clk 0:00:01]} 52. Ne7+ {[%clk 0:00:02]}  Kf8 {[%clk 0:00:01]} 53. Ng6+ {[%clk 0:00:02]}  Kg7 {[%clk 0:00:02]} 54. Nh4 {[%clk 0:00:02]}  Qf4+ {[%clk 0:00:02]} 55. Kh3 {[%clk 0:00:02]}  Qg5 {[%clk 0:00:02]} 56. g4 {[%clk 0:00:01]}  Qf4 {[%clk 0:00:01]} 57. Nf5+ {[%clk 0:00:01]}  Rxf5 {[%clk 0:00:01]} 58. Qxf5 {[%clk 0:00:02]}  Qxb4 {[%clk 0:00:01]} 59. Qg5+ {[%clk 0:00:02]}  Kf7 {[%clk 0:00:02]} 60. Qf5+ {[%clk 0:00:03]}  Kg7 {[%clk 0:00:02]} 61. Qg5+ {[%clk 0:00:03]}  Kf7 {[%clk 0:00:03]} 62. Qf5+ {[%clk 0:00:03]}  Kg7 {[%clk 0:00:04]} 1/2-1/2


[Site "https://www.chess.com"]